bitfinex-derivatives/quotes_ETHF0:USTF0_20241207
["timestamp","ask_amount","ask_price","bid_price","bid_amount"]
[1733532352461,4.88275748,4015.9,4015.5,0.17407]
[1733532352462,3.90607656,4015.6,4015.5,0.17407]
[1733532353656,4.88275748,4015.8,4015.7,0.17406]
[1733532353861,5.11600354,4015.8,4015.7,0.17406]
[1733532354655,0.23324606,4015.8,4015.7,0.17406]
[1733532355363,3.90527809,4015.8,4015.7,0.17406]
[1733532355559,3.90527809,4016.0,4015.9,0.17405]
[1733532355966,4.13850314,4016.0,4015.9,0.17405]
[1733532356157,0.23322505,4016.0,4015.9,0.17405]
[1733532356364,5.1432897,4016.1,4015.4,3.89172807]
[1733532356665,5.1432897,4016.1,4016.0,0.17405]
[1733532358763,5.1432897,4016.1,4015.4,3.89172807]
[1733532359069,5.1432897,4016.1,4016.0,0.17405]
[1733532359264,5.1432897,4016.1,4015.4,0.24875807]
[1733532359474,5.3173297,4016.1,4015.7,0.17405]
[1733532359767,5.3173297,4016.1,4015.8,0.17405]
[1733532359970,5.3173297,4016.1,4015.9,0.17405]
[1733532360167,0.17405,4016.0,4015.8,0.17405]
[1733532360566,0.4017,4015.9,4015.8,0.17405]
[1733532360867,5.1432897,4016.1,4015.4,0.24875807]
[1733532361060,5.1432897,4016.1,4016.0,0.17405]
[1733532365471,5.1432897,4016.1,4015.4,0.24875807]
[1733532365666,5.1432897,4016.1,4015.9,0.17405]
[1733532365873,5.3173297,4016.1,4016.0,0.17405]
[1733532366569,4.27406745,4016.1,4016.0,0.17405]
[1733532366768,4.10002745,4016.1,4016.0,0.17405]
[1733532367177,4.27406745,4016.1,4016.0,0.17405]
[1733532367482,4.10002745,4016.1,4016.0,0.17405]
[1733532367672,3.2078,4016.1,4016.0,0.17405]
[1733532370278,3.32668622,4016.5,4016.4,0.17403]
[1733532370279,1.29022745,4016.5,4016.4,0.17403]
[1733532370466,0.398,4016.5,4016.4,0.17403]
[1733532370669,2.92868622,4017.0,4016.8,0.17401]
[1733532370870,3.2078,4017.2,4017.1,0.174]
[1733532371774,7.11272044,4017.2,4017.1,0.174]
[1733532371978,3.90492044,4017.2,4017.1,0.174]
[1733532372574,4.29202044,4017.3,4017.2,0.17399]
[1733532373471,0.3871,4017.3,4017.2,0.17399]
[1733532374076,3.5949,4017.3,4016.8,0.17401]
[1733532374271,2.92373158,4016.9,4016.8,0.17401]
[1733532375372,3.90492044,4017.2,4016.8,0.17401]
[1733532375572,2.92283093,4016.9,4016.7,0.17401]
[1733532375780,2.92282748,4016.8,4016.7,0.17401]
[1733532375980,2.92282748,4016.8,4016.5,0.71]
[1733532376275,2.92282748,4016.6,4016.5,0.71]
[1733532376585,0.4061,4016.7,4016.5,0.88402]
[1733532377881,0.58012,4016.7,4016.4,0.24870301]
[1733532378076,4.13812721,4016.6,4016.4,0.24870301]
[1733532378278,4.13812721,4016.6,4015.3,3.2078]
[1733532378279,4.31492044,4016.5,4015.3,3.9178]
[1733532378477,3.0972565,4016.0,4015.6,0.17406]
[1733532378673,0.55035,4015.9,4015.5,0.17406]
[1733532378869,0.7641,4015.9,4015.5,0.17406]
[1733532379071,0.93815,4015.9,4015.6,0.24870301]
[1733532379474,3.2078,4015.7,4015.6,0.24870301]
[1733532379673,3.2078,4015.7,4015.6,0.42276301]
[1733532379969,3.6178,4015.7,4015.6,0.42276301]
[1733532380574,3.6178,4015.7,4015.6,0.24870301]
[1733532380779,3.79186,4015.7,4015.6,0.24870301]
[1733532380983,3.6178,4015.7,4015.3,0.71]
[1733532381180,0.17407,4015.6,4015.3,0.88407]
[1733532381684,6.5410065,4015.7,4015.3,0.17407]
[1733532381983,3.15648701,4015.6,4015.1,0.17408]
[1733532382176,2.9232065,4015.6,4015.3,0.17407]
[1733532382479,2.9232065,4015.5,4015.3,0.17407]
[1733532382683,2.9232065,4015.5,4015.4,0.17407]
[1733532382882,2.9232065,4015.6,4015.5,0.17407]
[1733532383087,6.5410065,4015.7,4015.5,0.17407]
[1733532383287,2.9232065,4015.8,4015.2,0.24877168]
[1733532383473,3.2078,4016.2,4016.1,0.17404]
[1733532385078,0.409,4016.4,4016.3,0.17403]
[1733532386087,0.409,4016.4,4015.7,0.71]
[1733532386278,3.3322065,4016.4,4015.7,0.71]
[1733532386480,3.3322065,4016.4,4016.2,0.17404]
[1733532386677,3.6168,4016.4,4016.1,0.17404]
[1733532386881,1.93202995,4016.2,4015.6,0.17406]
[1733532387087,0.4149,4016.1,4015.5,0.71]
[1733532387292,3.3381065,4016.1,4015.6,0.17406]
[1733532387587,3.3381065,4016.1,4015.7,0.17406]
[1733532387985,3.3381065,4016.1,4015.5,0.71]
[1733532388380,3.3381065,4016.1,4015.7,0.17405]
[1733532388585,3.3381065,4016.1,4015.9,0.17405]
[1733532388781,3.3381065,4016.1,4015.8,0.17405]
[1733532388982,3.3381065,4016.1,4015.5,0.71]
[1733532389493,3.3381065,4016.1,4015.7,0.17406]
[1733532389688,2.9232065,4016.0,4015.8,0.17405]
[1733532389882,2.9232065,4016.0,4015.5,0.71]
[1733532390193,3.3381065,4016.1,4016.0,0.17405]
[1733532390690,0.4149,4016.1,4016.0,0.17405]
[1733532390993,3.34289962,4016.1,4016.0,0.17405]
[1733532391187,0.4149,4016.1,4016.0,0.17405]
[1733532392088,2.92799962,4016.3,4015.7,0.43515]
[1733532392290,3.6168,4016.4,4016.3,0.17403]
[1733532392988,3.90492044,4016.9,4016.1,0.43511]
[1733532392989,2.92799962,4016.8,4016.1,0.43511]
[1733532393196,2.92799962,4016.8,4016.7,0.17401]
[1733532393395,3.2078,4016.9,4016.8,0.17401]
[1733532393691,3.2078,4016.9,4016.4,1.14507]
[1733532393692,8.08683712,4016.9,4016.4,1.14507]
[1733532393893,8.08683712,4016.9,4016.8,0.17401]
[1733532394286,3.2078,4016.9,4016.8,0.17401]
[1733532394988,8.08683712,4016.9,4016.8,0.17401]
[1733532395993,3.2078,4016.9,4016.8,0.17401]
[1733532396687,8.08683712,4016.9,4016.8,0.17401]
[1733532397496,3.2078,4016.9,4016.8,0.17401]
[1733532397988,8.08683712,4016.9,4016.8,0.17401]
[1733532399186,3.2078,4016.9,4016.8,0.17401]
[1733532399393,1.93202995,4017.0,4016.3,1.14509]
[1733532399692,1.93202995,4017.0,4016.9,0.17401]
[1733532401896,4.85838851,4017.0,4016.9,0.17401]
[1733532402092,2.16521624,4017.0,4016.9,0.17401]
[1733532402294,0.23318629,4017.0,4016.9,0.17401]
[1733532402504,6.13415856,4017.5,4016.9,0.88401]
[1733532402794,2.92635856,4017.8,4017.4,0.17398]
[1733532402986,3.14652995,4018.2,4017.9,0.17396]
[1733532402987,6.13415856,4018.0,4017.9,0.17396]
[1733532403189,3.2078,4018.0,4017.9,0.17396]
[1733532406397,3.2078,4018.5,4017.5,3.9178]
[1733532406700,3.2078,4018.5,4018.4,0.17394]
[1733532408796,3.2078,4018.5,4018.0,0.4349]
[1733532409295,4.86538503,4018.4,4018.3,0.17395]
[1733532410805,8.07318503,4018.5,4018.4,0.17394]
[1733532411795,3.2078,4018.5,4018.4,0.17394]
[1733532412299,3.2078,4018.5,4017.8,0.43492]
[1733532412897,4.86245843,4018.0,4017.9,0.17396]
[1733532413099,9.03655321,4018.5,4018.4,0.17394]
[1733532413301,9.03655321,4018.5,4017.8,0.43493]
[1733532413493,4.86261233,4017.9,4017.5,0.43495]
[1733532413696,3.2078,4018.0,4017.4,0.68357768]
[1733532413697,3.2078,4018.0,4017.4,0.43496]
[1733532413902,4.86276169,4017.7,4017.4,0.43496]
[1733532414495,4.86276169,4017.7,4017.6,0.17398]
[1733532415101,0.3841,4017.8,4017.7,0.17397]
[1733532416600,0.61723948,4017.8,4017.7,0.17397]
[1733532417305,0.3841,4017.8,4017.7,0.17397]
[1733532419306,0.61725651,4017.8,4017.7,0.17397]
[1733532419506,10.4668434,4017.8,4017.1,0.435]
[1733532419710,3.2078,4017.2,4017.1,0.174]
[1733532420305,3.44098573,4017.2,4017.1,0.174]
[1733532421002,3.2078,4017.2,4017.1,0.174]
[1733532421310,2.31612995,4017.8,4016.9,0.2]
[1733532421506,2.31612995,4017.8,4017.7,0.17397]
[1733532421706,2.54927713,4017.8,4017.7,0.17397]
[1733532422006,0.61724718,4017.8,4017.7,0.17397]
[1733532422222,0.3841,4017.8,4017.7,0.17397]
[1733532422509,3.2078,4018.1,4018.0,0.17396]
[1733532422809,3.44092485,4018.1,4018.0,0.17396]
[1733532423715,3.2078,4018.1,4018.0,0.17396]
[1733532424013,7.09642751,4018.1,4018.0,0.17396]
[1733532424214,7.32953923,4018.1,4018.0,0.17396]
[1733532424405,4.12173923,4018.1,4018.0,0.17396]
[1733532426303,0.23311172,4018.1,4018.0,0.17396]
[1733532427808,3.1503461,4018.1,4018.0,0.17396]
[1733532428811,3.88862751,4018.5,4017.7,1.93202995]
[1733532429011,3.88862751,4018.5,4018.4,0.17394]
[1733532429309,3.2078,4018.6,4018.1,3.2078]
[1733532429310,7.09642751,4018.6,4018.5,0.17394]
[1733532429714,3.88862751,4018.6,4018.5,0.17394]
[1733532429917,3.88862751,4018.8,4018.7,0.17393]
[1733532430231,3.88862751,4018.9,4018.8,0.17392]
[1733532430408,3.88862751,4019.0,4018.4,0.43486]
[1733532430611,3.88862751,4019.0,4018.9,0.17392]
[1733532431812,3.2078,4019.1,4018.6,0.3903]
[1733532432116,1.93202995,4018.7,4018.1,3.2078]
[1733532432315,1.93202995,4018.7,4018.6,0.17393]
[1733532432512,5.13982995,4019.1,4018.2,0.43488]
[1733532432707,3.2078,4019.1,4019.0,0.17392]
[1733532433614,5.31373995,4019.1,4018.4,0.17394]
[1733532433821,0.17392,4019.0,4018.4,0.17394]
[1733532434115,3.2078,4018.6,4018.1,3.2078]
[1733532434323,1.2124,4018.5,4018.2,0.17395]
[1733532434914,1.2124,4018.5,4017.5,0.709]
[1733532435112,1.2124,4018.5,4018.3,0.17394]
[1733532435317,1.2124,4018.5,4017.7,0.17397]
[1733532435518,1.38634,4018.5,4018.1,0.17395]
[1733532435723,1.2124,4018.5,4018.1,0.17395]
[1733532436225,2.10597995,4018.3,4017.6,0.17398]
[1733532436516,3.2078,4018.1,4018.0,0.17396]
[1733532436920,3.2078,4018.1,4017.3,3.2078]
[1733532437117,1.93202995,4017.9,4017.8,0.17397]
[1733532437320,1.93202995,4017.9,4017.3,3.2078]
[1733532437622,4.06259751,4017.8,4017.3,3.2078]
[1733532437823,4.06259751,4017.8,4017.6,0.17397]
[1733532438015,4.27772751,4017.7,4017.3,3.2078]
[1733532438316,4.27772751,4017.7,4017.3,3.38178]
[1733532438317,5.82065746,4017.5,4017.3,3.38178]
[1733532438515,3.88862751,4017.4,4017.3,3.38178]
[1733532439018,4.12179858,4017.4,4017.3,3.38178]
[1733532439419,0.23317107,4017.4,4017.3,3.38178]
[1733532439621,0.23317107,4017.4,4016.9,0.2]
[1733532439922,0.17399,4017.2,4017.0,0.174]
[1733532440126,0.23317107,4017.1,4017.0,0.174]
[1733532440315,1.93202995,4017.1,4016.9,0.2]
[1733532440516,0.23318586,4017.0,4016.9,0.374]
[1733532441123,0.23318586,4017.0,4016.9,0.2]
[1733532441524,0.23318586,4017.0,4016.9,0.37401]
[1733532442319,5.13982995,4017.1,4016.9,0.37401]
[1733532442731,0.23318693,4017.0,4016.9,0.2]
[1733532442922,0.23319028,4017.0,4016.9,0.2]
[1733532443122,0.23319028,4017.0,4016.9,0.37401]
[1733532443329,0.40719028,4017.0,4016.9,0.2]
[1733532444026,4.29581779,4017.0,4016.9,0.2]
[1733532444233,0.40719028,4017.0,4016.9,0.2]
[1733532445126,0.17402,4016.6,4016.5,0.17402]
[1733532445329,0.17403,4016.4,4016.3,0.17403]
[1733532445623,0.98943,4016.5,4016.4,0.17403]
[1733532445833,0.4109,4016.5,4016.4,0.17403]
[1733532446035,3.89864408,4016.7,4016.3,0.43508]
[1733532446229,3.89864408,4016.8,4016.7,0.17401]
[1733532446525,6.22077403,4017.0,4016.9,0.17401]
[1733532446927,4.28874408,4017.0,4016.9,0.17401]
[1733532447731,3.89864408,4017.0,4016.9,0.17401]
[1733532448032,3.2078,4017.2,4017.1,0.174]
[1733532448236,0.4109,4017.4,4016.5,3.64286]
[1733532448237,0.4109,4017.4,4016.9,0.708]
[1733532448431,0.4109,4017.4,4017.2,0.17399]
[1733532448931,0.4109,4017.4,4016.9,0.708]
[1733532449126,0.17405,4015.8,4015.4,0.17407]
[1733532449329,0.8054,4015.7,4015.2,3.2078]
[1733532449528,0.8054,4015.7,4015.6,0.17406]
[1733532449832,1.93202995,4016.0,4015.7,0.17405]
[1733532450035,1.93202995,4016.0,4015.3,0.7767]
[1733532450336,1.93202995,4016.0,4015.8,0.17405]
[1733532450531,0.17406,4015.7,4015.2,3.38188]
[1733532450833,0.8054,4016.2,4015.2,3.38188]
[1733532450834,1.93202995,4015.8,4015.7,0.17406]
[1733532451131,2.73742995,4016.2,4016.1,0.17404]
[1733532451336,1.93202995,4016.2,4016.1,0.17404]
[1733532454235,1.93202995,4016.2,4015.8,4.08985]
[1733532454436,0.12449889,4016.1,4015.8,0.88205]
[1733532454628,0.53959889,4016.1,4015.8,0.708]
[1733532454936,0.53959889,4016.1,4015.8,0.88205]
[1733532455339,0.53959889,4016.1,4015.9,0.17405]
[1733532455833,0.53959889,4016.1,4015.8,0.708]
[1733532456034,0.53959889,4016.1,4016.0,0.17405]
[1733532456336,0.53959889,4016.1,4015.6,0.709]
[1733532456841,0.53959889,4016.1,4015.8,0.17405]
[1733532457133,0.53959889,4016.1,4016.0,0.17405]
[1733532457134,0.12449889,4016.1,4016.0,0.17405]
[1733532460143,0.12449889,4016.1,4016.0,0.56755]
[1733532462444,0.12449889,4016.1,4016.0,0.17405]
[1733532462944,0.12449889,4016.1,4016.0,0.88305]
[1733532463142,0.12449889,4016.1,4016.0,5.88305]
[1733532463837,1.93202995,4017.0,4016.9,0.17401]
[1733532465352,1.93202995,4017.0,4016.3,3.2078]
[1733532465541,1.93202995,4016.5,4016.3,0.17403]
[1733532466048,0.4033,4016.4,4015.7,3.2078]
[1733532466249,0.3826,4016.3,4016.2,0.17403]
[1733532469555,0.3826,4016.3,4016.2,3.38183]
[1733532469948,0.3826,4016.3,4016.2,3.2078]
[1733532470759,0.3826,4016.3,4015.9,0.708]
[1733532471061,0.3826,4016.3,4016.1,0.17404]
[1733532471353,0.3826,4016.3,4015.9,0.708]
[1733532471755,0.55663,4016.3,4016.0,0.17404]
[1733532472049,0.3826,4016.3,4015.9,0.88205]
[1733532472250,0.3826,4016.3,4015.7,3.2078]
[1733532472454,0.17404,4016.2,4015.9,0.17405]
[1733532472756,0.55663,4016.3,4016.0,0.17404]
[1733532472946,0.55663,4016.3,4015.7,3.2078]
[1733532472947,0.3826,4016.3,4015.7,3.2078]
[1733532473152,0.23322958,4016.2,4016.0,0.17404]
[1733532473352,0.55663,4016.3,4016.0,0.17404]
[1733532473552,0.40727083,4016.2,4016.0,0.17404]
[1733532473754,0.55663,4016.3,4016.0,0.17404]
[1733532474060,0.40727217,4016.2,4016.0,0.17404]
[1733532474363,0.17404,4016.2,4016.0,0.17404]
[1733532474657,0.55664,4016.3,4016.1,0.17404]
[1733532474859,0.23323209,4016.2,4016.1,0.17404]
[1733532475061,0.55664,4016.3,4016.1,0.17404]
[1733532475253,0.23322522,4016.2,4016.1,0.17404]
[1733532475952,0.3826,4016.3,4016.2,0.17404]
[1733532476152,0.61582728,4016.3,4016.2,0.17404]
[1733532476456,0.61582728,4016.3,4016.1,0.17404]
[1733532476763,0.23322996,4016.2,4016.1,0.17404]
[1733532477554,0.23322996,4016.2,4016.0,0.17404]
[1733532477763,0.23322996,4016.1,4016.0,0.17404]
[1733532478060,0.23322996,4016.1,4015.8,0.17405]
[1733532478260,0.23322996,4016.0,4015.8,0.17405]
[1733532478461,0.23322996,4015.9,4015.8,0.17405]
[1733532478663,0.23322996,4015.9,4015.7,3.2078]
[1733532478961,0.55663,4016.3,4015.9,0.17405]
[1733532479162,0.2332313,4016.2,4015.9,0.17405]
[1733532479361,0.2332313,4016.1,4015.9,0.17405]
[1733532479563,0.2332313,4016.1,4015.7,3.2078]
[1733532479764,0.55663,4016.3,4016.0,0.17405]
[1733532480061,0.23323038,4016.2,4016.0,0.17405]
[1733532480254,0.23323038,4016.1,4015.7,3.2078]
[1733532480452,0.23323038,4016.0,4015.9,0.17405]
[1733532480652,0.23323038,4016.1,4015.9,0.17405]
[1733532480862,0.23323038,4016.0,4015.9,0.17405]
[1733532481064,0.23323038,4016.1,4015.7,3.2078]
[1733532481257,0.23323038,4016.0,4015.8,0.17405]
[1733532481659,0.4086,4015.9,4015.8,0.17405]
[1733532481861,0.23323038,4015.9,4015.8,2.10607995]
[1733532482058,0.4033,4016.4,4016.3,0.17403]
[1733532482362,0.81053834,4016.4,4015.8,0.408]
[1733532482563,0.23320834,4016.3,4015.9,0.17405]
[1733532482858,0.23320834,4016.3,4015.7,3.2078]
[1733532483253,0.23320834,4016.3,4016.2,0.17404]
[1733532483457,0.23320834,4016.3,4016.2,3.38184]
[1733532483767,0.3873,4016.5,4016.2,3.9158]
[1733532483969,0.3873,4016.5,4016.4,0.17403]
[1733532484365,0.3873,4016.5,4016.2,0.3587846]
[1733532484561,0.3873,4016.5,4016.4,0.17403]
[1733532484971,0.3873,4016.5,4016.2,0.3587846]
[1733532485275,3.2078,4016.3,4016.2,0.3587846]
[1733532486368,9.06747411,4016.3,4016.0,0.17404]
[1733532486567,0.3811,4016.2,4015.8,0.17405]
[1733532486764,0.4072,4016.1,4015.8,0.17405]
[1733532487463,0.58124,4016.1,4015.7,0.17405]
[1733532487868,0.58124,4016.1,4015.6,0.708]
[1733532487869,6.26687411,4016.1,4015.6,0.708]
[1733532488174,6.26687411,4016.1,4015.7,0.17405]
[1733532488363,6.26687411,4016.1,4015.8,0.17405]
[1733532488562,6.26687411,4016.1,4016.0,0.17405]
[1733532488766,0.4072,4016.1,4016.0,0.17405]
[1733532489174,0.4072,4016.1,4015.5,0.24872961]
[1733532489473,4.88576632,4015.6,4015.5,0.42279961]
[1733532489974,4.88576632,4015.7,4015.6,0.17406]
[1733532491174,3.3387602,4016.1,4015.5,0.63582961]
[1733532491364,3.3387602,4016.1,4016.0,0.17405]
[1733532494772,0.4072,4016.1,4016.0,0.17405]
[1733532495275,4.31594694,4016.1,4016.0,0.17405]
[1733532495576,4.31594694,4016.1,4015.5,0.63582961]
[1733532495776,4.31594694,4016.1,4015.9,0.17405]
[1733532495976,3.90874694,4016.0,4015.5,0.24872961]
[1733532496175,2.93305064,4015.6,4015.5,0.42278961]
[1733532496372,7.11654694,4015.8,4015.6,0.17406]
[1733532496676,0.4153,4015.7,4015.6,0.17406]
[1733532497471,0.17407,4015.5,4015.2,0.17408]
[1733532497669,2.93302602,4015.3,4015.2,0.17408]
[1733532498075,0.3991,4015.4,4015.1,3.2078]
[1733532498076,4.30784694,4015.4,4015.3,0.17408]
[1733532498273,0.17408,4015.2,4014.9,0.17409]
[1733532498480,6.14046742,4015.1,4014.6,3.45652961]
[1733532498673,2.93266742,4014.9,4014.7,0.1741]
[1733532498879,2.93266742,4014.8,4014.6,0.24872961]
[1733532499070,3.90874694,4014.9,4014.6,0.24872961]
[1733532499271,0.56889,4015.0,4014.6,0.24872961]
[1733532499272,0.3991,4014.7,4014.6,0.42283961]
[1733532499472,5.28495231,4014.7,4014.6,0.42283961]
[1733532499873,0.3991,4014.7,4014.6,0.42283961]
[1733532500981,0.3991,4014.7,4014.5,0.17411]
[1733532501180,8.0895444,4014.6,4014.5,0.17411]
[1733532501886,8.0895444,4014.6,4014.2,0.708]
[1733532502075,8.0895444,4014.6,4014.2,0.17412]
[1733532502076,3.90532103,4014.3,4014.2,0.17412]
[1733532502286,4.8817444,4014.4,4014.3,0.17411]
[1733532503285,4.8817444,4014.5,4014.3,0.17411]
[1733532503984,4.8817444,4014.5,4014.4,0.17411]
[1733532504179,10.41687435,4014.6,4014.4,0.17411]
[1733532504580,10.41687435,4014.6,4014.5,0.17411]
[1733532504887,10.41091621,4014.6,4014.4,0.17411]
[1733532505187,10.41091621,4014.6,4013.8,0.708]
[1733532505385,3.89946701,4014.4,4014.3,0.17411]
[1733532505688,10.41091621,4014.6,4014.3,0.17411]
[1733532505983,3.89938608,4014.4,4014.3,0.17411]
[1733532506484,5.53512995,4014.6,4014.3,0.17411]
[1733532506679,5.70923995,4014.6,4014.2,0.42298641]
[1733532506881,5.53512995,4014.6,4014.2,0.24886641]
[1733532507483,5.53512995,4014.6,4014.4,0.17411]
[1733532509281,5.53512995,4014.6,4014.2,0.24886641]
[1733532509486,5.53512995,4014.6,4014.4,0.17411]
[1733532510283,5.53512995,4014.6,4014.2,0.24886641]
[1733532510592,5.53512995,4014.6,4014.5,0.17411]
[1733532515188,9.42933525,4014.6,4014.5,0.17411]
[1733532516183,9.42933525,4014.6,4014.2,0.24886641]
[1733532516384,2.92027248,4014.4,4014.3,0.17412]
[1733532519089,2.92027248,4014.4,4014.2,0.42298641]
[1733532519390,0.3765,4014.3,4014.2,0.42298641]
[1733532519590,3.29677248,4014.3,4014.2,0.42298641]
[1733532519789,3.29648654,4014.3,4013.7,0.95672961]
[1733532520092,2.91998654,4014.0,4013.9,0.17413]
[1733532520493,0.4054,4014.0,4013.9,0.17413]
[1733532520989,3.2078,4014.1,4014.0,0.17412]
[1733532523801,0.3765,4014.3,4014.2,0.17411]
[1733532526399,0.3765,4014.3,4013.7,0.24872961]
[1733532526598,2.30852995,4014.3,4013.7,0.24872961]
[1733532526902,2.48263995,4014.3,4014.0,0.17412]
[1733532527101,2.30852995,4014.3,4013.7,0.24872961]
[1733532527296,2.30852995,4014.3,4014.2,0.17411]
[1733532528903,2.30852995,4014.3,4014.1,0.17411]
[1733532529102,2.30852995,4014.3,4014.2,0.17411]
[1733532530500,1.26936946,4014.3,4014.2,0.17411]
[1733532531202,1.26936946,4014.3,4014.1,0.17411]
[1733532532309,1.26936946,4014.3,4013.7,0.24872961]
[1733532532512,0.89286946,4013.8,4013.7,0.42285961]
[1733532536608,3.8942053,4013.8,4013.7,0.42285961]
[1733532537009,4.87578626,4014.1,4013.9,0.17412]
[1733532537206,0.23335547,4014.0,4013.5,0.908]
[1733532537511,4.87638894,4013.8,4013.7,0.17413]
[1733532537710,5.10974441,4013.8,4013.7,0.17413]
[1733532537913,0.23335547,4013.8,4013.7,0.17413]
[1733532538309,5.10974441,4013.8,4013.7,0.24886517]
[1733532538511,0.62145547,4013.8,4013.7,0.24886517]
[1733532538813,0.62145547,4013.8,4013.7,0.42299517]
[1733532539116,0.62145547,4013.8,4013.7,0.24886517]
[1733532540002,2.55617484,4013.8,4013.7,0.24886517]
[1733532540210,8.41584895,4013.8,4013.7,0.24886517]
[1733532541309,2.55617484,4013.8,4013.7,0.42299517]
[1733532541514,8.41825756,4013.8,4013.7,0.42299517]
[1733532542112,2.55617484,4013.8,4013.7,0.42299517]
[1733532543310,9.3924613,4013.8,4013.7,0.42299517]
[1733532543507,9.3924613,4013.8,4013.5,0.2]
[1733532543715,5.86812583,4013.6,4013.5,0.37413]
[1733532543910,0.23335547,4013.6,4013.5,0.37414]
[1733532544110,0.61045547,4013.6,4013.5,0.37414]
[1733532544314,0.3771,4013.6,4013.5,0.37414]
[1733532545606,4.29088086,4013.6,4013.5,0.37414]
[1733532545810,0.3771,4013.6,4013.5,0.37414]
[1733532546217,4.29088086,4013.6,4013.5,0.37414]
[1733532547519,4.29088086,4013.6,4013.5,0.62303057]
[1733532547922,4.29088086,4013.6,4013.5,0.63343455]
[1733532548318,0.3771,4013.6,4013.5,0.45929455]
[1733532549022,5.44345607,4013.6,4013.5,0.21040398]
[1733532549922,0.3771,4013.6,4012.8,0.24872961]
[1733532550118,3.2078,4012.9,4012.8,0.42289961]
[1733532550717,3.91475213,4013.1,4012.8,0.42289961]
[1733532551121,2.93459418,4012.9,4012.8,0.42289961]
[1733532551319,4.08891213,4013.1,4012.8,0.24872961]
[1733532551523,2.934637,4012.9,4012.8,0.24872961]
[1733532552422,2.934637,4012.9,4012.8,0.42289961]
[1733532553327,2.934637,4012.9,4012.8,0.24872961]
[1733532554122,2.934637,4012.9,4012.5,0.808]
[1733532554123,2.934637,4012.9,4012.5,0.1]
[1733532554328,2.934637,4012.6,4012.5,0.1]
[1733532554517,0.17418,4012.6,4012.5,0.1]
[1733532554823,4.08893213,4012.6,4012.5,0.1]
[1733532555128,3.90950318,4012.6,4012.5,0.1]
[1733532555318,4.08368318,4012.6,4012.5,0.1]
[1733532555515,0.55668,4012.6,4012.5,0.1]
[1733532555922,4.46612005,4012.6,4012.5,0.1]
[1733532556329,0.55668,4012.6,4012.5,0.1]
[1733532556517,0.55668,4012.6,4011.9,0.24872961]
[1733532556518,0.1742,4012.2,4011.9,0.24872961]
[1733532556723,2.74281937,4012.1,4011.9,0.24872961]
[1733532556922,2.91701937,4012.1,4011.9,0.24872961]
[1733532557127,6.65225942,4012.1,4011.9,0.24872961]
[1733532557332,0.1742,4012.0,4011.5,0.17422]
[1733532557522,2.92929453,4011.9,4011.6,0.17422]
[1733532558323,3.10349453,4012.0,4011.5,0.17422]
[1733532558533,3.10349453,4012.0,4011.6,0.17422]
[1733532558730,0.89401686,4011.7,4011.6,0.17422]
[1733532558930,0.89401686,4011.7,4011.6,0.42314526]
[1733532559226,4.10181686,4011.7,4011.2,0.708]
[1733532559618,2.92929453,4011.5,4011.2,0.708]
[1733532559931,3.82331139,4011.3,4011.2,0.708]
[1733532560230,0.89401686,4011.3,4011.2,0.708]
[1733532560625,1.93756834,4011.3,4011.2,0.708]
[1733532560930,1.93756834,4011.3,4011.0,0.24872961]
[1733532561133,3.38204,4011.2,4010.8,0.17425]
[1733532561430,1.93756834,4010.9,4010.5,0.17426]
[1733532561632,1.93756834,4010.9,4010.6,0.24892526]
[1733532561931,0.4129,4010.8,4010.6,0.42318526]
[1733532562133,0.4098,4010.7,4010.6,0.42318526]
[1733532563128,3.2078,4011.2,4010.7,0.17426]
[1733532563331,4.89344016,4012.3,4010.6,0.24892526]
[1733532563332,0.8227,4011.7,4011.6,0.17422]
[1733532563524,1.93756834,4012.1,4012.0,0.1742]
[1733532563931,3.6176,4012.2,4012.1,0.1742]
[1733532564128,1.93756834,4012.3,4011.3,3.9158]
[1733532564431,1.93756834,4012.3,4012.2,0.17419]
[1733532565332,1.93756834,4012.3,4012.1,0.1742]
[1733532565630,0.1742,4012.0,4011.5,0.17422]
[1733532565822,3.2078,4012.2,4010.8,0.43564]
[1733532565823,1.93756834,4011.6,4010.8,0.43564]
[1733532566028,0.4027,4011.5,4011.4,0.17423]
[1733532566233,0.4027,4011.5,4011.3,0.17423]
[1733532566424,0.4027,4011.5,4011.2,0.17424]
[1733532566624,0.4027,4011.5,4011.3,0.17423]
[1733532566821,0.57693,4011.5,4011.0,0.17424]
[1733532567022,1.93756834,4011.2,4010.7,0.708]
[1733532567227,1.93756834,4011.2,4011.1,0.17424]
[1733532568143,1.93756834,4011.2,4010.7,0.708]
[1733532568630,1.93756834,4011.2,4011.0,0.17424]
[1733532569227,1.93756834,4011.2,4010.6,0.24892526]
[1733532569429,1.93756834,4011.2,4011.1,0.17424]
[1733532569629,0.4149,4011.4,4011.3,0.17423]
[1733532569922,2.34026834,4011.5,4011.0,3.2078]
[1733532570123,3.2078,4011.1,4010.2,3.2078]
[1733532570329,1.93756834,4010.7,4010.4,0.17427]
[1733532570729,3.2078,4010.5,4010.4,0.17427]
[1733532571635,3.2078,4010.5,4010.4,0.42324174]
[1733532572033,0.4069,4011.3,4010.4,0.42324174]
[1733532572034,0.4069,4011.3,4010.4,5.24897174]
[1733532572340,2.34026834,4011.5,4011.4,0.17423]
[1733532572837,0.4027,4011.5,4011.4,0.17423]
[1733532573141,3.2078,4011.8,4011.7,0.17421]
[1733532573537,1.93756834,4012.3,4012.2,0.17419]
[1733532573840,3.2078,4012.4,4012.3,0.17419]
[1733532575431,3.2078,4012.4,4011.8,0.4154]
[1733532575640,1.93756834,4012.1,4011.9,0.708]
[1733532575936,1.93756834,4012.1,4011.9,0.8822]
[1733532576137,1.93756834,4012.1,4011.4,0.708]
[1733532576331,1.93756834,4011.5,4011.4,0.708]
[1733532576535,1.93756834,4011.5,4011.0,0.17425]
[1733532576734,1.93756834,4011.5,4011.1,0.17424]
[1733532577039,1.93756834,4011.5,4010.9,0.708]
[1733532577636,1.93756834,4011.1,4010.8,0.7941]
[1733532577838,1.93756834,4011.1,4010.6,0.3926]